bitfinex/quotes_ETHUSD_20240630
["timestamp","ask_amount","ask_price","bid_price","bid_amount"]
[1719778069494,0.833,3432.3,3431.7,0.30164858]
[1719778069999,12.47,3433.1,3431.9,2.3022]
[1719778070000,2.4902,3432.8,3431.9,2.3022]
[1719778070295,0.833,3432.8,3432.0,0.18475825]
[1719778070498,2.4902,3433.0,3432.0,0.18475825]
[1719778070661,7.32,3433.3,3432.1,2.2649]
[1719778070662,9.6999,3433.3,3432.1,2.2649]
[1719778070863,0.833,3433.0,3432.2,1.09568065]
[1719778071104,0.833,3433.0,3432.3,0.05826139]
[1719778071462,0.833,3433.0,3432.4,0.12629497]
[1719778073093,3.0,3433.2,3432.4,0.12629497]
[1719778073275,0.833,3432.9,3432.4,0.12629497]
[1719778073476,0.833,3432.9,3432.4,0.46234239]
[1719778077398,0.833,3432.7,3432.4,0.46234239]
[1719778078983,0.833,3432.7,3432.4,0.12629497]
[1719778079306,0.833,3432.7,3432.1,2.2649]
[1719778079769,0.833,3432.7,3432.2,0.12622024]
[1719778083195,0.833,3432.6,3432.2,0.12622024]
[1719778086320,0.833,3432.3,3432.2,0.12622024]
[1719778086823,0.833,3432.3,3431.1,8.43723976]
[1719778086824,0.833,3432.3,3431.6,2.3309]
[1719778086976,0.833,3432.3,3432.2,0.12551192]
[1719778087180,0.833,3432.3,3431.6,2.3309]
[1719778087378,0.833,3432.3,3432.2,0.12551192]
[1719778087620,1.14544,3432.3,3431.6,2.3309]
[1719778087823,0.833,3432.3,3432.2,0.12551192]
[1719778088281,0.833,3432.3,3431.6,2.3309]
[1719778088482,0.833,3432.3,3431.7,0.1257261]
[1719778089297,0.805,3432.3,3431.7,0.1257261]
[1719778090810,0.833,3431.8,3431.7,0.2717261]
[1719778091013,0.833,3432.0,3431.7,0.2717261]
[1719778091211,0.833,3432.0,3431.7,0.146]
[1719778091895,0.30964,3432.3,3431.7,0.146]
[1719778091896,0.833,3431.8,3431.7,0.146]
[1719778093741,3.0,3431.9,3431.7,0.146]
[1719778093896,0.833,3431.8,3431.7,0.146]
[1719778096011,3.0,3431.9,3431.7,0.146]
[1719778096220,0.833,3431.9,3431.7,0.146]
[1719778096537,3.0,3432.2,3431.8,0.12168773]
[1719778096538,0.833,3432.1,3431.8,0.12168773]
[1719778096943,0.833,3432.1,3431.7,0.146]
[1719778097314,0.833,3432.1,3431.8,0.12176573]
[1719778097716,0.833,3432.1,3431.7,0.146]
[1719778098222,0.833,3432.1,3431.8,0.12176573]
[1719778098406,0.833,3432.1,3431.7,0.146]
[1719778098609,0.833,3432.1,3431.8,0.12176573]
[1719778098955,0.833,3432.1,3431.7,0.146]
[1719778099336,0.833,3432.1,3431.8,0.12176573]
[1719778099516,0.833,3431.9,3431.8,0.12176573]
[1719778099722,0.833,3431.9,3431.7,0.146]
[1719778100116,0.833,3431.9,3431.8,0.12176573]
[1719778100529,0.833,3431.9,3431.7,0.146]
[1719778100832,0.833,3431.9,3431.8,0.12176573]
[1719778101003,0.833,3431.9,3431.7,0.146]
[1719778101207,0.833,3431.9,3431.8,0.12176573]
[1719778101438,0.833,3431.9,3431.7,0.146]
[1719778101708,0.833,3431.9,3431.8,0.12176573]
[1719778101910,0.833,3431.9,3431.7,0.146]
[1719778102105,0.833,3431.9,3431.8,0.12176573]
[1719778102520,0.833,3431.9,3431.7,0.146]
[1719778103031,0.833,3431.9,3431.8,0.12176573]
[1719778103216,0.833,3431.9,3431.7,0.146]
[1719778103417,0.833,3431.9,3431.8,0.12176573]
[1719778103625,0.833,3431.9,3431.7,0.146]
[1719778103864,0.833,3431.9,3431.8,0.12176573]
[1719778104071,0.833,3431.9,3431.7,0.146]
[1719778104370,0.833,3431.9,3431.8,0.12176573]
[1719778104784,0.833,3431.9,3431.7,0.146]
[1719778105146,0.833,3431.9,3431.8,0.12176573]
[1719778105669,0.833,3431.9,3431.7,0.146]
[1719778105875,0.833,3431.9,3431.8,0.12176573]
[1719778106090,0.833,3431.9,3431.7,0.146]
[1719778106280,0.833,3431.9,3431.8,0.12176573]
[1719778106474,0.833,3431.9,3431.7,0.146]
[1719778106684,0.833,3431.9,3431.8,0.12175336]
[1719778106991,0.833,3431.9,3431.7,0.146]
[1719778107344,0.833,3431.9,3431.8,0.12175336]
[1719778107744,0.833,3431.9,3431.7,0.146]
[1719778108170,0.833,3431.9,3431.8,0.12175336]
[1719778108558,0.833,3431.9,3431.7,0.146]
[1719778108887,0.833,3431.9,3431.8,0.12175336]
[1719778109091,0.833,3431.9,3431.7,0.146]
[1719778109286,0.833,3431.9,3431.8,0.12175336]
[1719778109492,0.833,3431.9,3431.7,0.146]
[1719778109987,0.833,3431.9,3431.8,0.12175336]
[1719778110351,0.833,3431.9,3431.7,0.146]
[1719778110752,3.258,3431.9,3431.8,0.12175336]
[1719778110948,6.258,3431.9,3431.8,0.12175336]
[1719778111189,6.258,3431.9,3431.7,0.146]
[1719778116375,3.0,3431.9,3431.7,0.146]
[1719778116628,0.833,3432.1,3431.7,2.5273]
[1719778116784,0.833,3432.1,3431.8,0.25273]
[1719778116989,0.833,3432.1,3431.8,0.37453571]
[1719778117180,3.0,3432.3,3431.8,0.37453571]
[1719778119833,3.0,3432.3,3431.8,0.25273]
[1719778120571,3.0,3432.3,3431.8,0.31100403]
[1719778120870,3.0,3432.3,3431.9,0.4055967]
[1719778121303,3.0,3432.7,3431.9,0.4055967]
[1719778121602,0.833,3432.5,3431.9,0.4055967]
[1719778122358,3.0,3432.7,3432.0,0.05827063]
[1719778122618,0.833,3432.6,3432.1,2.3813]
[1719778122776,0.833,3432.6,3432.2,0.28451673]
[1719778123215,0.833,3432.6,3432.3,0.12155727]
[1719778123420,2.425,3433.1,3432.3,0.12155727]
[1719778123575,0.833,3432.9,3432.2,0.28451673]
[1719778123775,2.425,3433.1,3432.4,0.12151787]
[1719778124008,2.425,3433.1,3432.3,0.44640423]
[1719778124310,7.32,3433.2,3432.4,0.12151787]
[1719778124311,0.833,3432.9,3432.4,0.12151787]
[1719778124510,0.833,3432.9,3432.5,2.3813]
[1719778124726,0.833,3432.9,3432.6,0.37754739]
[1719778125714,3.0,3433.1,3432.6,0.37754739]
[1719778125912,0.833,3433.2,3432.6,0.37754739]
[1719778127596,0.833,3433.1,3432.6,0.37754739]
[1719778127922,0.833,3433.1,3432.7,0.28171065]
[1719778128125,0.833,3433.1,3432.8,0.12136028]
[1719778128320,0.833,3433.1,3432.7,0.28171065]
[1719778128479,0.833,3433.1,3432.8,0.12136028]
[1719778128678,0.833,3433.1,3432.7,0.28171065]
[1719778128889,0.833,3433.1,3432.8,0.12136028]
[1719778129106,0.833,3433.1,3432.8,0.284263]
[1719778129318,0.833,3433.1,3432.9,0.12132089]
[1719778129485,0.833,3433.1,3432.8,0.284263]
[1719778129689,0.833,3433.1,3432.9,0.12132089]
[1719778129885,0.833,3433.1,3432.8,0.284263]
[1719778130234,0.833,3433.1,3432.9,0.12132089]
[1719778130577,0.833,3433.1,3432.8,0.284263]
[1719778130777,0.833,3433.1,3433.0,0.1212815]
[1719778131024,0.833,3433.1,3432.9,0.12132089]
[1719778131173,0.833,3433.1,3433.0,0.121174]
[1719778131578,0.833,3433.1,3432.8,0.284263]
[1719778131830,0.833,3433.1,3433.0,0.121174]
[1719778131979,0.833,3433.1,3432.9,0.12121339]
[1719778132179,0.833,3433.1,3433.0,0.121174]
[1719778132464,0.833,3433.1,3432.5,2.3813]
[1719778132964,0.833,3433.1,3432.6,0.12133157]
[1719778133541,3.0,3433.4,3432.6,0.12133157]
[1719778133731,0.833,3433.0,3432.6,0.12133157]
[1719778133929,0.833,3433.0,3432.6,0.37159473]
[1719778135550,3.0,3433.4,3432.6,0.37159473]
[1719778135753,0.833,3433.1,3432.6,0.37159473]
[1719778139223,7.32,3433.7,3432.7,2.4078]
[1719778139419,2.2573,3433.9,3432.8,0.88619212]
[1719778139623,0.833,3433.3,3432.8,1.0073707]
[1719778143757,3.0,3433.8,3432.8,1.0073707]
[1719778144079,0.833,3433.3,3432.8,1.0073707]
[1719778144777,0.833,3433.3,3432.8,0.94911805]
[1719778144949,0.833,3433.3,3432.9,0.36071812]
[1719778145283,0.833,3433.1,3433.0,0.12105603]
[1719778145638,0.833,3433.1,3432.7,2.4078]
[1719778146039,0.833,3433.1,3432.8,0.12110818]
[1719778146342,0.833,3433.1,3432.7,2.4078]
[1719778146557,0.833,3433.1,3432.9,0.12106879]
[1719778146903,0.833,3433.1,3432.7,2.67360632]
[1719778146904,0.833,3433.1,3433.0,0.1210294]
[1719778147084,0.833,3433.1,3432.7,2.67360632]
[1719778147391,0.833,3433.1,3432.8,0.12110818]
[1719778147819,0.833,3433.1,3432.7,2.67360632]
[1719778148020,0.833,3433.1,3432.9,0.12106879]
[1719778148225,0.833,3433.1,3432.8,0.12110818]
[1719778148376,0.833,3433.1,3433.0,0.1210294]
[1719778148579,0.833,3433.1,3432.9,0.12106879]
[1719778148905,0.833,3433.1,3433.0,0.1210294]
[1719778149113,0.833,3433.1,3432.3,2.4078]
[1719778149424,0.833,3433.1,3432.4,0.91206099]
[1719778150485,2.2573,3433.3,3432.4,0.91206099]
[1719778150677,0.833,3433.1,3432.4,0.91206099]
[1719778151752,0.833,3433.1,3432.5,0.05825967]
[1719778152243,0.833,3433.1,3432.6,0.12120504]
[1719778152402,0.833,3433.1,3432.6,0.45900951]
[1719778158754,2.2573,3433.3,3432.7,2.4717]
[1719778158912,0.833,3433.1,3432.7,2.59288088]
[1719778166985,0.833,3433.3,3432.7,2.59288088]
[1719778167137,0.833,3433.3,3432.7,2.97085341]
[1719778174491,0.833,3433.5,3432.9,2.2715]
[1719778174879,0.833,3433.5,3433.0,0.12105317]
[1719778175080,0.833,3433.5,3433.1,0.24508132]
[1719778175491,3.0,3433.6,3433.3,2.2715]
[1719778175695,0.833,3433.5,3433.3,2.2715]
[1719778177930,3.0,3433.6,3433.3,2.2715]
[1719778178086,3.833,3433.6,3433.3,2.2715]
[1719778179187,3.0,3433.6,3433.3,2.2715]
[1719778179384,0.833,3433.6,3433.3,2.2715]
[1719778180086,0.833,3433.4,3432.8,0.05825998]
[1719778180288,0.833,3433.4,3432.8,0.32903323]
[1719778180501,0.833,3433.4,3432.9,0.12103553]
[1719778180908,0.833,3433.4,3432.8,0.32903323]
[1719778181119,0.833,3433.4,3433.0,0.12099614]
[1719778181283,0.833,3433.4,3432.9,0.12103553]
[1719778181487,0.833,3433.4,3432.9,0.30995413]
[1719778181719,0.833,3433.4,3433.0,0.12099614]
[1719778191204,0.833,3433.4,3432.5,2.3778]
[1719778191523,2.3274,3433.5,3433.1,0.12098717]
[1719778191524,0.833,3433.2,3433.1,0.12098717]
[1719778191984,0.833,3433.2,3432.5,2.3778]
[1719778192326,0.833,3433.2,3432.6,0.41396412]
[1719778193635,0.833,3433.0,3432.6,0.41396412]
[1719778193791,0.833,3433.0,3432.6,0.12118412]
[1719778193988,2.3274,3433.5,3432.6,0.12118412]
[1719778193989,0.833,3433.2,3432.6,0.12118412]
[1719778200720,2.4959,3433.1,3432.6,0.12118412]
[1719778201434,0.833,3433.2,3432.6,0.12118412]
[1719778201634,3.0,3433.6,3432.6,0.12118412]
[1719778201635,0.833,3432.7,3432.6,0.12118412]
[1719778201806,0.833,3432.7,3432.0,2.3925]
[1719778202006,0.833,3432.4,3432.0,2.3925]
[1719778203499,2.4959,3432.8,3432.0,2.3925]
[1719778203808,0.833,3432.4,3432.0,2.64635]
[1719778204335,0.833,3432.5,3432.0,2.64635]
[1719778204707,2.4959,3432.8,3432.0,2.64635]
[1719778204708,0.833,3432.6,3432.0,2.64635]
[1719778205324,3.3289,3432.8,3432.0,2.64635]
[1719778206308,2.4959,3432.8,3432.0,2.64635]
[1719778206508,0.833,3432.7,3432.0,2.64635]
[1719778207250,0.833,3432.7,3432.1,0.1175364]
[1719778216445,0.833,3432.8,3432.2,2.3976]
[1719778216951,0.833,3432.8,3432.3,0.11751469]
[1719778217448,0.833,3432.8,3432.4,0.11747529]
[1719778217962,0.833,3432.8,3432.2,2.3976]
[1719778218163,0.833,3432.8,3432.5,0.11743589]
[1719778218365,0.833,3432.8,3432.2,2.3976]
[1719778218535,0.833,3432.8,3432.6,0.11739649]
[1719778218721,0.833,3432.8,3432.2,2.3976]
[1719778218917,0.833,3432.8,3432.7,0.11735709]
[1719778219122,0.833,3432.8,3432.2,2.3976]
[1719778219624,0.833,3432.8,3432.3,0.11751469]
[1719778219827,0.833,3432.8,3432.2,2.3976]
[1719778220055,0.833,3432.8,3432.3,0.11751469]
[1719778220448,0.833,3432.8,3432.2,2.3976]
[1719778220661,0.833,3432.8,3432.4,0.11747529]
[1719778220862,0.833,3432.8,3432.2,2.3976]
[1719778220863,0.833,3432.8,3432.3,0.11751469]
[1719778221161,0.833,3432.8,3432.2,2.3976]
[1719778221323,0.833,3432.8,3432.4,0.11747529]
[1719778221523,0.833,3432.8,3432.2,2.63736]
[1719778221954,0.833,3432.8,3432.3,0.11751469]
[1719778222335,0.833,3432.8,3432.2,2.63736]
[1719778222522,0.833,3432.8,3432.4,0.11747529]
[1719778222718,0.833,3432.8,3432.3,0.11751469]
[1719778222922,0.833,3432.8,3432.2,2.63736]
[1719778223124,0.833,3432.8,3432.4,0.11747529]
[1719778223359,3.0,3433.1,3432.2,2.63736]
[1719778223360,0.833,3432.6,3432.3,0.11751469]
[1719778223538,0.833,3432.6,3432.2,2.63736]
[1719778223539,0.833,3432.6,3432.2,2.3976]
[1719778223741,0.833,3432.6,3432.4,0.11747529]
[1719778223941,0.833,3432.6,3432.3,0.11751469]
[1719778224141,0.833,3432.6,3432.5,0.11743589]
[1719778224373,0.833,3432.6,3432.4,0.11747529]
[1719778224667,0.833,3432.6,3432.5,0.11743589]
[1719778225175,0.833,3432.6,3432.2,2.3976]
[1719778225469,0.833,3432.6,3432.2,2.63736]
[1719778225675,0.833,3432.6,3432.3,0.11751469]
[1719778226031,0.833,3432.6,3432.2,2.63736]
[1719778226233,0.833,3432.6,3432.3,0.11751469]
[1719778226433,2.3292,3432.9,3432.3,0.11751469]
[1719778226665,0.833,3432.8,3432.2,2.63736]
[1719778227180,0.833,3432.8,3432.3,0.11751469]
[1719778227485,0.833,3432.8,3432.2,2.63736]
[1719778227776,0.833,3432.8,3432.4,0.11746672]
[1719778227973,0.833,3432.8,3432.3,0.11750612]
[1719778228140,0.833,3432.8,3432.2,2.3976]
[1719778228343,0.833,3432.8,3432.4,0.11746672]
[1719778228546,0.833,3432.8,3432.2,2.3976]
[1719778228547,0.833,3432.8,3432.3,0.11750612]
[1719778228733,0.833,3432.8,3432.2,2.3976]
[1719778228930,3.0,3433.3,3432.4,0.11746672]
[1719778229140,0.833,3432.8,3432.3,0.11750612]
[1719778229339,0.833,3432.8,3432.2,2.3976]
[1719778229575,0.833,3432.8,3432.4,0.11746672]
[1719778229875,0.833,3432.8,3432.5,0.11742732]
[1719778230174,3.833,3433.0,3432.5,0.11742732]
[1719778230354,3.833,3433.0,3432.2,2.3976]
[1719778230551,3.833,3433.0,3432.2,2.72648673]
[1719778230741,3.833,3433.0,3432.3,0.11754227]
[1719778231170,3.833,3433.0,3432.2,2.72648673]
[1719778231571,3.0,3433.0,3432.3,0.11753656]
[1719778231775,0.833,3432.9,3432.2,2.72648673]
[1719778231977,0.833,3432.9,3432.3,0.27847541]
[1719778233252,3.0,3433.0,3432.3,0.33674276]
[1719778233449,0.833,3433.2,3432.4,2.4817]
[1719778234078,0.833,3433.2,3432.5,0.14743624]
[1719778234277,0.833,3433.2,3432.6,2.4817]
[1719778234778,3.0,3433.3,3432.7,0.1473557]
[1719778234779,0.833,3433.0,3432.7,0.1473557]
[1719778235155,0.833,3433.0,3432.6,2.4817]
[1719778235342,3.0,3433.1,3432.6,2.4817]
[1719778235537,0.833,3433.0,3432.6,2.4817]
[1719778236560,0.833,3433.0,3432.7,0.1473557]
[1719778237054,3.0,3433.1,3432.7,0.1473557]
[1719778237398,0.833,3433.1,3432.7,0.1473557]
[1719778237543,3.833,3433.1,3432.7,0.1473557]
[1719778239662,3.833,3433.1,3432.6,2.4817]
[1719778240354,3.833,3433.1,3432.7,0.1473557]
[1719778242098,3.833,3433.1,3432.8,0.14727167]
[1719778242605,0.833,3433.1,3432.6,2.4817]
[1719778242901,0.833,3433.1,3432.6,2.72987]
[1719778243274,0.833,3433.1,3432.7,0.14731193]
[1719778245065,3.0,3433.7,3432.8,2.4817]
[1719778245379,7.32,3433.8,3432.8,2.4817]
[1719778245380,0.833,3433.6,3432.8,2.4817]
[1719778245686,0.833,3433.6,3432.9,0.1472314]
[1719778245861,0.833,3433.6,3433.0,0.34619314]
[1719778246265,2.3113,3433.9,3433.1,0.14715088]
[1719778246567,2.3113,3433.9,3433.2,2.4817]
[1719778246568,0.833,3433.6,3433.2,2.4817]
[1719778246965,0.833,3433.6,3433.3,0.14707037]
[1719778247374,0.833,3433.6,3433.2,2.4817]
[1719778247603,0.833,3433.6,3433.4,0.14703011]
[1719778247911,0.833,3433.6,3433.2,2.4817]
[1719778248407,0.833,3433.6,3433.3,0.14707037]
[1719778248699,0.833,3433.6,3433.2,2.4817]
[1719778248886,0.833,3433.6,3433.4,0.14703011]
[1719778249203,0.833,3433.6,3433.3,0.14707037]
[1719778249402,0.833,3433.6,3433.2,2.4817]
[1719778249606,0.833,3433.6,3433.4,0.14703011]
[1719778249911,0.833,3433.6,3433.2,2.4817]
[1719778250388,0.833,3433.6,3433.3,0.14707037]
[1719778250904,0.833,3433.6,3433.2,2.4817]
[1719778250905,0.833,3433.6,3433.4,0.14703011]
[1719778251403,0.833,3433.6,3433.2,2.4817]
[1719778251799,0.833,3433.6,3433.3,0.14707037]
[1719778252199,0.833,3433.6,3433.2,2.4817]
[1719778252524,0.833,3433.6,3433.3,0.14707037]
[1719778252872,0.833,3433.6,3433.2,2.4817]
[1719778253203,0.833,3433.6,3433.4,0.14703011]
[1719778253370,0.833,3433.6,3433.2,2.4817]
[1719778253371,0.833,3433.6,3433.3,0.14707037]
[1719778253570,3.0,3434.1,3433.2,2.4817]
[1719778253819,0.833,3433.8,3433.4,0.14703011]
[1719778253988,0.833,3433.8,3433.3,0.14707037]
[1719778254191,0.833,3433.8,3433.5,0.14698986]
[1719778254375,0.833,3433.8,3433.4,0.14703011]
[1719778254570,0.833,3433.8,3433.6,0.14694961]
[1719778254776,0.833,3433.8,3433.2,2.4817]
[1719778255273,0.833,3433.8,3433.3,0.14707037]
[1719778255670,0.833,3433.8,3433.2,2.4817]
[1719778255897,0.833,3433.7,3433.4,0.14697115]
[1719778256111,0.833,3433.7,3433.3,0.14692295]
[1719778256273,0.833,3433.7,3433.5,0.14684245]
[1719778256475,0.833,3433.7,3433.4,0.1468827]
[1719778256722,0.833,3433.7,3433.6,0.1468022]
[1719778257020,0.833,3433.7,3433.5,0.14684245]
[1719778257187,2.4169,3434.0,3433.6,0.1468022]
[1719778257524,2.4169,3434.0,3432.9,2.3703]
[1719778257525,0.833,3433.7,3432.9,2.3703]
[1719778257689,0.833,3433.4,3432.9,2.3703]
[1719778257888,0.833,3433.4,3433.0,0.14704278]
[1719778261917,0.833,3433.4,3432.9,2.3703]
[1719778262320,3.0,3433.7,3433.0,0.14704278]
[1719778262481,0.833,3433.6,3433.0,0.14704278]
[1719778262921,3.0,3433.7,3433.0,0.14704278]
[1719778263081,0.833,3433.8,3433.1,2.3703]
[1719778263583,0.833,3433.8,3433.2,0.14696226]
[1719778264486,5.4169,3434.3,3433.2,0.14696226]
[1719778264795,0.833,3433.8,3433.3,2.3703]
[1719778265224,0.833,3433.8,3433.4,0.14688175]
[1719778265524,0.833,3434.0,3433.3,2.3703]
[1719778265820,0.833,3434.0,3433.5,0.14683103]
[1719778266021,0.833,3434.0,3433.4,0.14686178]
[1719778266195,5.4169,3434.3,3433.6,0.14678128]
[1719778266396,5.4169,3434.3,3433.5,0.14682152]
[1719778266707,5.4169,3434.3,3433.3,2.3703]
[1719778266913,0.833,3434.1,3433.3,2.3703]
[1719778267115,5.4169,3434.3,3433.3,2.3703]
[1719778267116,5.4169,3434.3,3433.4,0.14685892]
[1719778267426,0.833,3434.1,3433.4,0.14685892]
[1719778267586,5.4169,3434.3,3433.3,2.7222108]
[1719778267902,0.833,3434.0,3433.4,0.14685892]
[1719778268301,0.833,3434.0,3433.5,0.28690697]
[1719778268795,0.833,3434.0,3433.6,0.14677842]
[1719778269192,0.833,3433.8,3433.6,0.14677842]
[1719778269397,5.4169,3434.3,3433.6,0.14677842]
[1719778269592,0.833,3433.9,3433.6,0.14677842]
[1719778269937,0.833,3433.7,3433.3,0.3519108]
[1719778270081,0.833,3433.7,3433.1,2.3703]
[1719778271320,3.833,3433.8,3433.1,2.3703]
[1719778272590,3.0,3433.8,3433.1,2.3703]
[1719778272913,0.833,3434.0,3433.1,2.3703]
[1719778273227,0.833,3434.0,3433.2,2.6970552]
[1719778273736,3.0,3434.2,3433.2,2.6970552]
[1719778274024,2.3093,3434.3,3433.2,2.6970552]
[1719778274025,0.833,3434.0,3433.2,2.6970552]
[1719778275733,3.0,3434.2,3433.3,2.4597]
[1719778275903,2.3093,3434.3,3433.5,2.4597]
[1719778275904,0.833,3434.1,3433.5,2.4597]
[1719778276706,3.0,3434.2,3433.5,2.4597]
[1719778276910,0.833,3434.1,3433.5,2.4597]
[1719778278196,0.833,3433.9,3432.5,2.4597]
[1719778278524,0.833,3433.9,3433.0,2.4597]
[1719778278707,0.833,3433.9,3433.1,0.32927]
[1719778282290,0.833,3433.9,3433.2,0.14693564]
[1719778286520,0.833,3433.9,3433.3,2.4597]
[1719778286743,0.833,3433.9,3433.3,2.60659538]
[1719778293142,3.0,3434.0,3433.3,2.60659538]
[1719778293458,0.833,3434.0,3433.4,0.29358654]
[1719778293618,3.833,3434.0,3433.4,0.29358654]
[1719778293958,3.833,3434.0,3433.5,0.14682821]
[1719778295136,3.0,3434.0,3433.5,0.14682821]
[1719778295347,3.092,3434.3,3433.5,0.14682821]
[1719778295551,3.0,3434.2,3433.5,0.52013969]
[1719778296015,0.833,3434.1,3433.5,0.52013969]
[1719778297155,0.833,3433.9,3433.5,0.52013969]
[1719778297454,0.833,3433.9,3433.5,0.14682821]
[1719778297907,2.259,3434.0,3433.1,2.78017]
[1719778298015,3.092,3434.0,3433.6,0.14678796]
[1719778298459,3.092,3434.0,3433.1,2.78017]
[1719778298658,2.259,3434.2,3433.2,0.96956244]
[1719778298956,3.092,3434.2,3433.3,2.4509]
[1719778299263,3.0,3434.1,3433.3,2.59780872]
[1719778315158,3.0,3434.1,3433.4,0.05824528]
[1719778315360,3.0,3434.1,3433.4,0.20033516]
[1719778317716,3.0,3434.1,3433.5,2.4546]
[1719778317927,3.833,3434.2,3433.5,2.59664963]
[1719778320435,3.833,3434.2,3433.5,2.94744629]
[1719778325597,3.0,3434.2,3433.5,2.94744629]
[1719778325931,3.1889,3434.3,3433.5,2.94744629]
[1719778326129,3.0,3434.2,3433.5,2.94744629]
[1719778326330,3.0,3434.2,3433.6,0.30056915]
[1719778326500,3.0,3434.2,3433.6,0.44258136]
[1719778327436,0.833,3434.3,3433.6,0.44258136]
[1719778328806,3.833,3434.4,3433.6,0.44258136]
[1719778329033,3.833,3434.4,3433.8,2.4546]
[1719778329034,3.0,3434.4,3433.8,2.4546]
[1719778329240,3.833,3434.6,3433.8,2.4546]
[1719778329544,3.833,3434.6,3433.9,0.14188007]
[1719778329734,3.0,3434.6,3433.9,0.14188007]
[1719778329930,0.833,3434.6,3434.1,2.4546]
[1719778330340,0.833,3434.6,3434.2,0.14175936]
[1719778345967,3.0,3434.8,3434.2,0.14175936]
[1719778346267,2.3559,3434.9,3434.1,2.4546]
[1719778346268,0.833,3434.6,3434.1,2.4546]
[1719778346566,0.833,3434.6,3434.1,2.70006]
[1719778346764,0.833,3434.6,3434.2,0.14150039]
[1719778350170,3.0,3434.8,3434.3,2.3455]
[1719778350344,0.833,3434.8,3434.3,2.3455]
[1719778350551,0.833,3434.8,3434.1,2.53386]
[1719778350749,0.833,3434.6,3434.4,0.14140853]
[1719778350948,0.833,3434.6,3434.1,2.2884]
[1719778351149,0.833,3434.6,3434.1,2.51724]
[1719778351351,0.833,3434.6,3433.6,0.30056915]
[1719778351352,2.4169,3434.6,3433.8,2.2884]
[1719778351682,0.833,3434.3,3434.2,0.14069577]
[1719778351862,0.833,3434.3,3433.8,2.2884]
[1719778352068,0.833,3434.3,3434.2,0.14069577]
[1719778352384,0.833,3434.3,3433.8,2.2884]
[1719778352680,0.833,3434.3,3434.2,0.14069577]
[1719778352879,0.833,3434.3,3433.8,2.2884]
[1719778353065,0.833,3434.3,3434.2,0.14069577]
[1719778353265,0.833,3434.3,3433.8,2.2884]
[1719778353765,3.0,3434.5,3433.8,2.2884]
[1719778353766,3.833,3434.5,3433.9,0.14081648]
[1719778355295,3.833,3434.5,3433.9,0.41379504]
[1719778357395,3.833,3434.5,3433.9,0.14081648]
[1719778360603,0.833,3434.6,3433.9,0.14081648]
[1719778362266,2.3513,3434.5,3433.8,2.2884]
[1719778362461,5.3513,3434.5,3433.8,2.2884]
[1719778365416,5.3513,3434.5,3433.8,2.63059692]
[1719778365763,5.3513,3434.5,3433.9,0.14005502]
[1719778368376,3.833,3434.5,3433.9,0.14005502]
[1719778368577,0.833,3434.5,3433.9,0.14005502]
[1719778369404,3.0,3434.6,3434.0,2.2943]
[1719778369582,0.833,3434.7,3434.1,0.41762973]
[1719778369779,0.833,3434.7,3434.0,2.2943]
[1719778370098,0.833,3434.7,3434.1,0.13997454]
[1719778370568,3.0,3434.8,3434.2,2.3063]
[1719778370764,0.833,3434.8,3434.2,2.3063]
[1719778370994,0.833,3434.8,3434.3,0.13989408]
[1719778371207,0.833,3434.8,3434.2,2.3063]
[1719778371567,0.833,3434.8,3434.3,0.13989408]
[1719778371769,0.833,3434.8,3434.2,2.3063]
[1719778372194,0.833,3434.8,3434.3,0.13988461]
[1719778372404,0.833,3434.8,3434.2,2.3063]
[1719778372586,0.833,3434.8,3434.3,0.13988461]
[1719778373068,0.833,3434.8,3434.3,0.24461846]
[1719778374524,0.21188996,3434.7,3434.3,0.24461846]
[1719778375627,0.833,3434.8,3434.3,0.24461846]
[1719778375780,0.833,3434.6,3434.3,0.24461846]
[1719778376111,0.833,3434.6,3434.4,0.13984438]
[1719778377032,3.0,3435.1,3434.4,0.13984438]
[1719778377033,0.833,3434.8,3434.4,0.13984438]
[1719778377382,0.833,3434.8,3434.2,2.3063]
[1719778377641,0.833,3434.8,3434.3,0.13988461]
[1719778377791,0.833,3434.8,3434.2,2.3063]
[1719778378002,0.833,3434.8,3434.3,0.13988461]
[1719778378235,0.833,3434.8,3434.2,2.3063]
[1719778378405,0.833,3434.8,3434.3,0.13988461]
[1719778378586,0.833,3434.8,3434.2,2.3063]
[1719778378927,0.833,3434.8,3434.3,0.13988461]
[1719778379220,0.833,3434.8,3434.2,2.3063]
[1719778379438,0.833,3434.8,3434.3,0.13988461]
[1719778379601,0.833,3434.8,3434.2,2.3063]
[1719778379800,0.2118963,3434.7,3434.3,0.13988461]
[1719778380000,0.833,3434.6,3434.2,2.3063]
[1719778380546,0.833,3434.6,3434.3,0.13988461]
[1719778380887,0.833,3434.6,3434.2,2.3063]
[1719778381088,0.833,3434.6,3434.4,0.13984438]
[1719778381281,0.833,3434.6,3434.3,0.13988461]
[1719778381488,0.833,3434.6,3434.2,2.3063]
[1719778381718,0.833,3434.6,3434.4,0.13984438]